bitfinex/quotes_ETHUSD_20250908
["timestamp","ask_amount","ask_price","bid_price","bid_amount"]
[1757318405619,1.2041,4295.5,4295.3,2.33011457]
[1757318405816,0.4489,4295.4,4295.3,2.33011457]
[1757318406067,1.2041,4295.4,4295.3,0.002]
[1757318406236,1.32451,4295.4,4295.3,0.002]
[1757318409986,3.65258189,4295.4,4295.3,0.002]
[1757318410274,1.32451,4295.4,4295.3,0.002]
[1757318410592,4.79202782,4295.4,4295.3,0.002]
[1757318414174,4.6617356,4295.4,4295.3,0.002]
[1757318414369,7.6617356,4295.4,4295.3,0.002]
[1757318414570,8.29216562,4295.4,4295.3,0.002]
[1757318417216,12.17316562,4295.4,4295.3,0.002]
[1757318426832,19.23156562,4295.4,4295.3,0.002]
[1757318427647,19.23076562,4295.4,4295.3,0.002]
[1757318439178,20.06664885,4295.4,4295.3,0.002]
[1757318440447,19.60254885,4295.4,4295.3,0.002]
[1757318441249,18.76666562,4295.4,4295.3,0.002]
[1757318441586,18.76701079,4295.4,4295.3,0.002]
[1757318442285,18.76801079,4295.4,4295.3,0.002]
[1757318450208,18.76801079,4295.4,4295.1,0.002]
[1757318450209,3.908,4295.3,4295.1,1e-08]
[1757318450379,17.96213887,4295.2,4295.1,1e-08]
[1757318450576,19.20483887,4295.2,4295.1,1e-08]
[1757318450979,19.3227931,4295.2,4295.1,1e-08]
[1757318451383,19.20483887,4295.2,4295.1,1e-08]
[1757318451591,21.47274684,4295.2,4295.1,1e-08]
[1757318452982,21.47194684,4295.2,4295.1,1e-08]
[1757318453302,19.73662199,4295.2,4295.1,1e-08]
[1757318453671,26.79502199,4295.2,4295.1,1e-08]
[1757318456773,26.79579695,4295.2,4295.1,1e-08]
[1757318457110,20.93159212,4295.2,4295.1,1e-08]
[1757318457407,26.79579695,4295.2,4295.1,1e-08]
[1757318457804,20.93159212,4295.2,4295.1,1e-08]
[1757318458433,20.21431548,4295.2,4295.1,0.75400001]
[1757318458772,19.37919212,4295.2,4295.1,0.75400001]
[1757318459172,20.17119212,4295.2,4295.1,0.75400001]
[1757318463200,17.90328415,4295.2,4295.1,0.75400001]
[1757318464182,7.77702428,4295.2,4295.1,1.20300001]
[1757318464399,4.59462428,4295.2,4295.1,1.20300001]
[1757318464593,3.876,4295.2,4295.1,1.20300001]
[1757318469113,0.38703755,4295.4,4295.1,1.20300001]
[1757318469315,3.876,4295.3,4295.2,1.60882048]
[1757318469493,3.876,4295.3,4295.2,1.90972048]
[1757318470740,3.876,4295.3,4295.2,4.23790077]
[1757318470956,4.26203755,4295.4,4295.3,2.32812609]
[1757318471240,4.26203755,4295.4,4295.3,4.77415721]
[1757318471547,0.38703755,4295.4,4295.3,10.63836204]
[1757318473749,0.38703755,4295.4,4295.3,17.51436204]
[1757318474126,0.0252,4295.8,4295.7,2.3279093]
[1757318474309,0.0252,4295.8,4295.7,11.19211413]
[1757318474504,0.0252,4295.8,4295.7,12.67438552]
[1757318474709,0.0252,4295.8,4295.7,12.76761116]
[1757318475652,0.0252,4295.8,4295.7,27.26761116]
[1757318476838,0.0252,4295.8,4295.7,31.15061116]
[1757318478536,0.0244,4295.8,4295.7,31.15061116]
[1757318481165,0.0244,4295.8,4295.7,30.60638552]
[1757318481528,0.0244,4295.8,4295.7,31.05538552]
[1757318484198,0.0244,4295.8,4295.7,31.17138552]
[1757318487197,0.0244,4295.8,4295.7,30.72238552]
[1757318488690,0.3154,4295.8,4295.7,9.60318069]
[1757318488896,0.7746,4295.8,4295.7,9.3239093]
[1757318489302,0.0244,4295.8,4295.7,9.3239093]
[1757318489896,0.0244,4295.8,4295.7,10.0913093]
[1757318490094,0.0244,4295.8,4295.7,10.5481093]
[1757318490279,0.0244,4295.8,4295.7,11.53410117]
[1757318492395,0.0244,4295.8,4295.7,11.07730117]
[1757318492597,0.0244,4295.8,4295.7,11.53410117]
[1757318493303,0.021,4295.9,4295.8,2.32785511]
[1757318493526,0.001,4296.2,4296.1,11.19189738]
[1757318493702,0.001,4296.2,4296.1,10.85182367]
[1757318493909,0.001,4296.2,4296.1,26.29092367]
[1757318496311,1e-08,4296.8,4296.6,2.32742168]
[1757318496461,0.001,4297.5,4296.8,3.0]
[1757318496664,0.001,4297.5,4296.9,10.49335105]
[1757318496886,0.001,4297.5,4296.9,24.99335105]
[1757318497106,0.001,4297.5,4297.4,2.32698841]
[1757318497398,0.001,4297.5,4297.4,15.08619324]
[1757318497603,0.001,4297.5,4297.4,16.31039324]
[1757318497807,0.7512,4297.5,4297.4,6.22498841]
[1757318498006,1.2399,4297.5,4297.4,6.22498841]
[1757318498175,1.2399,4297.5,4297.4,3.898]
[1757318498360,1.2399,4297.5,4297.2,3.898]
[1757318498563,0.4592,4297.4,4297.2,3.898]
[1757318498766,0.001,4297.5,4297.3,2.32702631]
[1757318499004,0.001,4297.5,4297.2,6.22508587]
[1757318499005,1.2389,4297.4,4297.2,6.22508587]
[1757318499208,0.291,4297.4,4297.3,2.32704256]
[1757318499818,0.7502,4297.4,4297.3,2.32704256]
[1757318503122,0.001,4297.5,4297.4,2.32698841]
[1757318503524,0.4897,4297.5,4297.4,2.32698841]
[1757318503746,1.2399,4297.5,4297.4,2.32698841]
[1757318503943,0.0002,4297.5,4297.4,6.22298841]
[1757318504348,0.7504,4297.5,4297.4,6.22298841]
[1757318505928,0.0002,4297.5,4297.4,12.08719324]
[1757318506246,0.0002,4297.5,4297.4,13.81372167]
[1757318506439,0.0002,4297.5,4297.4,13.92972167]
[1757318506844,0.0002,4297.5,4297.4,13.64462167]
[1757318507033,0.0002,4297.5,4297.4,7.78041684]
[1757318507233,0.0002,4297.5,4297.4,13.64462167]
[1757318509840,0.0002,4297.5,4297.4,13.92972167]
[1757318510552,0.0002,4297.5,4297.4,13.64462167]
[1757318512464,0.0002,4297.5,4297.4,7.78041684]
[1757318513662,0.2858,4297.5,4297.4,7.78041684]
[1757318515026,0.0002,4297.5,4297.4,7.78041684]
[1757318517463,0.0002,4297.5,4297.4,8.08041684]
[1757318517953,0.0002,4297.5,4297.4,8.53591684]
[1757318519371,0.0002,4297.5,4297.4,8.99161684]
[1757318522187,0.0002,4297.5,4297.4,23.03591684]
[1757318522335,0.0002,4297.5,4297.4,23.49161684]
[1757318522845,0.0002,4297.5,4297.4,23.58480664]
[1757318523164,0.0002,4297.5,4297.4,23.12910664]
[1757318524458,0.0002,4297.5,4297.4,22.36760664]
[1757318524639,1.1821,4297.5,4297.4,6.33298841]
[1757318529337,1.1813,4297.5,4297.4,6.33298841]
[1757318531341,1.1823,4297.5,4297.4,6.33298841]
[1757318534106,0.7172,4297.5,4297.4,6.33298841]
[1757318536109,0.001,4297.5,4297.4,6.33298841]
[1757318536402,0.001,4297.5,4297.4,7.19919636]
[1757318540040,0.7178,4297.5,4297.4,7.19919636]
[1757318540553,0.001,4297.5,4297.4,7.19919636]
[1757318546406,0.7773,4297.5,4297.4,6.33298841]
[1757318548883,1.2744,4297.5,4297.4,6.21698841]
[1757318550484,0.7773,4297.5,4297.4,6.21698841]
[1757318554775,0.7773,4297.5,4297.4,6.50298841]
[1757318554776,0.0002,4297.5,4297.4,6.50298841]
[1757318554980,0.0002,4297.5,4297.4,7.85069636]
[1757318557301,0.0002,4297.5,4297.4,7.39779636]
[1757318558585,0.0002,4297.5,4297.4,6.21698841]
[1757318559294,0.3143,4297.5,4297.4,6.21698841]
[1757318559498,0.7765,4297.5,4297.4,6.21698841]
[1757318560395,0.7765,4297.5,4297.4,2.32698841]
[1757318560699,1.2736,4297.5,4297.4,2.32698841]
[1757318561158,0.7765,4297.5,4297.4,2.32698841]
[1757318562400,1.2736,4297.5,4297.3,6.20703875]
[1757318562698,0.9593,4297.4,4297.3,3.88]
[1757318563002,1.2734,4297.4,4297.3,3.88]
[1757318563805,1.2734,4297.4,4297.3,6.20704256]
[1757318564012,1.2734,4297.4,4297.3,3.88]
[1757318564398,1.2734,4297.4,4297.3,6.20704256]
[1757318565312,1.2734,4297.4,4297.3,3.88]
[1757318565518,1.2734,4297.4,4297.3,0.002]
[1757318566976,1.48227043,4297.4,4297.3,0.002]
[1757318567273,3.80925884,4297.4,4297.3,0.002]
[1757318567471,4.02636814,4297.4,4297.3,0.002]
[1757318568091,4.81836814,4297.4,4297.3,0.002]
[1757318568917,12.72396592,4297.4,4297.3,0.002]
[1757318569216,15.72396592,4297.4,4297.3,0.002]
[1757318569583,15.72313506,4297.4,4297.3,0.002]
[1757318571904,15.89661251,4297.4,4297.3,0.002]
[1757318572428,21.75462593,4297.4,4297.3,0.002]
[1757318576534,21.75382979,4297.4,4297.3,0.002]
[1757318577441,21.75379309,4297.4,4297.3,0.002]
[1757318577839,25.63179309,4297.4,4297.3,0.002]
[1757318578203,25.50177224,4297.4,4297.3,0.002]
[1757318579224,25.28507082,4297.4,4297.3,0.002]
[1757318579433,25.50089572,4297.4,4297.3,0.002]
[1757318579949,25.63038759,4297.4,4297.3,0.002]
[1757318580111,25.62958759,4297.4,4297.3,0.002]
[1757318586810,25.6295048,4297.4,4297.3,0.002]
[1757318589557,11.97721844,4297.0,4296.9,0.002]
[1757318589852,6.23525918,4296.9,4296.8,0.002]
[1757318590007,15.57781427,4296.9,4296.8,0.002]
[1757318590211,3.11942168,4296.6,4296.4,0.002]
[1757318590446,13.07035547,4296.6,4296.4,0.002]
[1757318590752,17.40678856,4296.6,4296.4,0.002]
[1757318590938,17.50005485,4296.6,4296.4,0.002]
[1757318591254,17.5001004,4296.6,4296.4,0.002]
[1757318591949,24.5585004,4296.6,4296.4,0.002]
[1757318592118,6.65001342,4295.9,4295.1,0.46050001]
[1757318592320,15.30881568,4295.9,4295.3,0.4547]
[1757318592855,15.30881568,4295.9,4295.3,0.002]
[1757318592856,16.73981476,4295.9,4295.3,0.002]
[1757318593017,11.97808531,4295.4,4295.3,0.002]
[1757318593213,16.91518935,4295.4,4295.3,0.002]
[1757318593448,20.06250767,4295.4,4295.3,0.002]
[1757318593751,20.06250767,4295.4,4294.9,0.002]
[1757318593752,3.1202887,4295.0,4294.9,0.002]
[1757318593964,15.34738254,4295.0,4294.9,0.002]
[1757318594171,15.34738254,4295.0,4294.6,0.002]
[1757318594172,0.792,4294.7,4294.6,1e-08]
[1757318594464,22.45388498,4294.7,4294.6,1e-08]
[1757318594632,25.23002807,4294.7,4294.6,1e-08]
[1757318594838,20.30191465,4294.7,4294.6,1e-08]
[1757318596240,20.30291465,4294.7,4294.6,1e-08]
[1757318596453,19.83721465,4294.7,4294.6,1e-08]
[1757318596826,20.30291465,4294.7,4294.6,1e-08]
[1757318597966,19.83721465,4294.7,4294.6,1e-08]
[1757318599138,19.62140811,4294.7,4294.6,1e-08]
[1757318599774,26.67980811,4294.7,4294.6,1e-08]
[1757318600774,25.92250811,4294.7,4294.6,0.75960001]
[1757318600972,25.92350811,4294.7,4294.6,1e-08]
[1757318601159,26.68080811,4294.7,4294.6,1e-08]
[1757318601366,15.21643181,4294.7,4294.6,0.75960001]
[1757318601684,10.9444,4294.7,4294.6,1.20010001]
[1757318601840,11.7364,4294.7,4294.6,1.20010001]
[1757318602033,10.9444,4294.7,4294.6,1.20010001]
[1757318602261,7.0594,4294.7,4294.6,1.20010001]
[1757318602570,10.9444,4294.7,4294.6,1.20010001]
[1757318602771,14.06485134,4294.7,4294.6,1.20010001]
[1757318603349,11.7364,4294.7,4294.6,1.20010001]
[1757318603754,14.06485134,4294.7,4294.6,1.20010001]
[1757318604348,14.06485134,4294.7,4294.6,0.75960001]
[1757318604546,14.32689692,4294.7,4294.6,0.75960001]
[1757318604848,14.06485134,4294.7,4294.6,0.75960001]
[1757318605283,14.06485134,4294.7,4294.6,1.21080001]
[1757318605684,14.06405134,4294.7,4294.6,1.21080001]
[1757318606082,14.06405134,4294.7,4294.6,0.75960001]
[1757318606381,14.06405134,4294.7,4294.6,1e-08]
[1757318606595,15.97071765,4294.7,4294.6,1e-08]
[1757318606905,15.97071765,4294.7,4294.6,0.28880001]
[1757318607057,15.97071765,4294.7,4294.6,0.77990001]
[1757318607453,26.76926471,4294.7,4294.6,1e-08]
[1757318608683,26.27156471,4294.7,4294.6,1e-08]
[1757318608892,26.27163106,4294.7,4294.6,1e-08]
[1757318609382,26.76933106,4294.7,4294.6,1e-08]
[1757318611181,15.79711764,4294.7,4294.6,1e-08]
[1757318611382,19.68611764,4294.7,4294.6,1e-08]
[1757318612088,19.68611764,4294.7,4294.6,0.77990001]
[1757318612089,16.68511764,4294.7,4294.6,0.77990001]
[1757318612285,15.67810883,4294.7,4294.6,0.77990001]
[1757318612584,13.77244252,4294.7,4294.6,1.23110001]
[1757318612791,14.56444252,4294.7,4294.6,1.23110001]
[1757318612995,14.56444252,4294.7,4294.6,0.77990001]
[1757318614762,14.56444252,4294.7,4294.6,1e-08]
[1757318614763,23.71255594,4294.7,4294.6,1e-08]
[1757318614976,26.41135308,4294.7,4294.6,1e-08]
[1757318615298,26.4114038,4294.7,4294.6,1e-08]
[1757318615787,10.89987361,4294.7,4294.6,0.77990001]
[1757318615992,11.674511,4294.7,4294.6,1.23110001]
[1757318616163,12.25099118,4294.7,4294.6,1.23110001]
[1757318616364,0.49739118,4294.7,4294.6,1.23110001]
[1757318616564,3.913,4294.7,4294.6,1.23110001]
[1757318622710,3.913,4294.7,4294.6,0.77990001]
[1757318623705,3.913,4294.7,4294.6,1.23110001]
[1757318625796,3.913,4294.7,4294.6,0.77990001]
[1757318625979,3.913,4294.7,4294.6,0.28880001]
[1757318626517,3.913,4294.7,4294.6,1e-08]
[1757318627217,3.913,4294.7,4294.6,0.28880001]
[1757318627796,7.32355134,4294.7,4294.6,1e-08]
[1757318627990,7.76495134,4294.7,4294.6,1e-08]
[1757318629607,16.53830853,4294.7,4294.6,1e-08]
[1757318629815,17.47859393,4294.7,4294.6,1e-08]
[1757318631131,17.47779393,4294.7,4294.6,1e-08]
[1757318633527,17.03639393,4294.7,4294.6,1e-08]
[1757318633728,12.4801983,4294.7,4294.6,0.29250001]
[1757318633940,8.5651983,4294.7,4294.6,0.75200001]
[1757318634090,12.4801983,4294.7,4294.6,0.75200001]
[1757318634290,14.80864964,4294.7,4294.6,0.75200001]
[1757318634540,14.80864964,4294.7,4294.6,0.29250001]
[1757318635652,12.4801983,4294.7,4294.6,0.29250001]
[1757318636009,11.1893129,4294.7,4294.6,0.29250001]
[1757318636211,11.1893129,4294.7,4294.6,0.75200001]
[1757318637308,7.2743129,4294.7,4294.6,0.75200001]
[1757318637619,7.2743129,4294.7,4294.6,1.21660001]
[1757318637620,10.9718,4294.7,4294.6,1.21660001]
[1757318638436,10.9718,4294.7,4294.6,0.75200001]
[1757318640456,10.9718,4294.7,4294.6,3.08050557]
[1757318640667,7.0578,4294.7,4294.6,3.54510557]
[1757318640957,3.9132,4294.7,4294.6,4.13308274]
[1757318641155,0.0002,4294.7,4294.6,4.13308274]
[1757318641454,0.0002,4294.7,4294.6,21.74908274]
[1757318647682,0.30074304,4295.0,4294.9,2.32834291]
[1757318647884,0.30074304,4295.0,4294.9,14.35666967]
[1757318648059,0.30074304,4295.0,4294.9,15.68926967]
[1757318648596,0.30074304,4295.0,4294.9,30.18926967]
[1757318648959,0.001,4295.2,4295.1,2.32823449]
[1757318649154,0.001,4295.2,4295.1,9.23823449]
[1757318649505,0.001,4295.2,4295.1,11.04281166]
[1757318649673,0.001,4295.2,4295.1,25.54281166]
[1757318656484,0.0002,4295.2,4295.1,25.54281166]
[1757318657707,0.0002,4295.2,4295.1,24.32621166]
[1757318658278,0.0002,4295.2,4295.1,24.61871166]
[1757318660823,0.0002,4295.2,4295.1,25.07821166]
[1757318661919,0.0002,4295.2,4295.1,24.61871166]
[1757318662210,0.0002,4295.2,4295.1,24.32621166]
[1757318662911,0.7441,4295.2,4295.1,20.41621166]
[1757318663116,0.7441,4295.2,4295.1,24.32021166]
[1757318663319,1.2302,4295.2,4295.1,9.23223449]
[1757318663480,1.2302,4295.2,4295.1,2.32823449]
[1757318664383,1.2302,4295.2,4294.6,1e-08]
[1757318664578,0.486,4295.1,4294.6,2.32848643]
[1757318664779,0.937,4295.1,4294.7,2.32845134]
[1757318664979,0.0002,4295.2,4294.8,2.32836812]
[1757318665331,0.299,4294.9,4294.6,1e-08]
[1757318665639,0.299,4294.9,4294.6,2.32849767]
[1757318665789,0.937,4294.8,4294.6,1e-08]
[1757318666314,1.236,4294.7,4294.6,1e-08]
[1757318672794,1.236,4294.7,4294.6,2.32850557]
[1757318673098,0.75,4294.7,4294.6,1e-08]
[1757318673436,1.236,4294.7,4294.6,1e-08]
[1757318673934,1.236,4294.7,4294.6,2.32850557]
[1757318674138,0.75,4294.7,4294.6,2.32850557]
[1757318674335,0.75,4294.7,4294.6,1e-08]
[1757318674532,1.236,4294.7,4294.6,1e-08]
[1757318678943,0.116,4294.8,4294.6,1e-08]
[1757318679144,0.0002,4295.2,4294.6,0.78888506]
[1757318679303,0.0002,4295.2,4295.0,2.32827525]
[1757318679829,0.4512,4295.2,4294.8,2.32835002]
[1757318680030,0.75,4295.1,4294.9,2.3283375]
[1757318680322,0.75,4295.1,4295.0,2.3282887]
[1757318682004,0.7492,4295.1,4295.0,2.3282887]
[1757318683442,0.0002,4295.2,4295.0,2.6378887]
[1757318683621,0.0002,4295.2,4295.1,2.78423449]
[1757318684010,0.0002,4295.2,4295.1,3.09383449]
[1757318684336,0.0002,4295.2,4295.1,0.3096]
[1757318684505,0.0002,4295.2,4295.0,2.32827005]
[1757318685407,0.4512,4295.2,4295.0,2.32827005]
[1757318686008,0.4512,4295.2,4294.9,2.32833583]
[1757318686334,0.75,4295.1,4294.9,2.32833583]
[1757318686531,0.451,4295.0,4294.9,2.32833583]
[1757318686732,0.75,4295.0,4294.9,2.32833583]
[1757318686933,0.0002,4295.2,4295.0,2.32827521]
[1757318687315,0.75,4295.1,4295.0,2.32827521]
[1757318688840,0.299,4295.1,4295.0,2.32827521]
[1757318689649,0.0002,4295.2,4295.0,2.32827521]
[1757318690252,0.4512,4295.2,4295.0,2.32827521]
[1757318690546,0.75,4295.1,4295.0,2.32827521]
[1757318690849,0.0002,4295.2,4295.0,2.32827521]
[1757318691645,0.0002,4295.2,4295.1,2.32823449]
[1757318692039,0.0002,4295.2,4295.0,2.32828196]
[1757318693731,0.0002,4295.2,4294.9,0.456]
[1757318693929,0.0002,4295.2,4295.1,2.32823449]
[1757318696851,0.0002,4295.2,4295.1,2.62563449]
[1757318699364,0.0002,4295.2,4295.1,7.20762946]
[1757318699765,0.0002,4295.2,4295.1,21.80087314]
[1757318700477,0.0002,4295.2,4295.1,27.66048197]
[1757318706287,0.0002,4295.2,4295.1,27.54448197]
[1757318706471,0.0002,4295.2,4295.1,27.66048197]
[1757318707075,1e-08,4295.8,4295.7,2.3279093]
[1757318707247,1e-08,4295.8,4295.7,17.10430906]
[1757318707454,0.00020001,4296.1,4296.0,2.32774674]
[1757318707653,0.00020001,4296.1,4296.0,23.72274674]
[1757318707970,0.00020001,4296.1,4296.0,25.03836521]
[1757318708697,0.00020001,4296.1,4296.0,36.75758287]
[1757318708843,0.00020001,4296.1,4296.0,38.21281996]
[1757318709358,0.00020001,4296.1,4296.0,32.35321113]
[1757318709979,0.00020001,4296.1,4296.0,38.21281996]
[1757318710788,0.00020001,4296.1,4296.0,32.35321113]
[1757318711985,0.00020001,4296.1,4296.0,31.89971113]
[1757318713291,0.00020001,4296.1,4296.0,31.90071113]
[1757318713854,0.00020001,4296.1,4296.0,21.3762023]
[1757318714157,0.00020001,4296.1,4296.0,25.5686023]
[1757318715287,0.00020001,4296.1,4296.0,26.0401023]
[1757318716181,0.457,4296.5,4296.4,2.32753002]
[1757318716182,0.40720001,4296.5,4296.4,2.32753002]
[1757318716387,0.40720001,4296.5,4296.4,9.22553002]
[1757318716681,0.025,4296.8,4296.7,2.32736751]
[1757318716886,0.025,4296.8,4296.7,9.22436751]
[1757318717082,0.3178,4296.8,4296.7,9.34036751]
[1757318717683,0.025,4296.8,4296.7,9.63776751]
[1757318717891,0.025,4296.8,4296.7,10.10926751]
[1757318718093,0.025,4296.8,4296.7,10.83925844]
[1757318718256,0.4972,4297.5,4297.4,2.32698841]
[1757318718257,0.0002,4297.5,4297.4,2.32698841]
[1757318718459,0.0002,4297.5,4297.4,9.34098841]
[1757318718761,0.293,4297.5,4297.4,23.84098841]
[1757318719370,0.75,4297.5,4297.4,23.84098841]
[1757318719689,1.247,4297.5,4297.4,23.84098841]
[1757318719855,1.247,4297.5,4297.4,20.84098841]
[1757318720060,1.247,4297.5,4297.4,6.34098841]
[1757318720388,0.293,4297.5,4297.4,6.34098841]
[1757318721008,0.75,4297.5,4297.4,6.34098841]
[1757318722591,0.0002,4297.5,4297.4,6.34098841]
[1757318722793,0.293,4297.5,4297.4,6.34098841]
[1757318723001,0.75,4297.5,4297.4,6.34098841]
[1757318725161,0.0002,4297.5,4297.4,6.34098841]
[1757318725495,0.0002,4297.5,4297.4,8.33722047]
[1757318725681,0.297,4297.5,4297.4,6.34098841]
[1757318726003,0.7391,4297.5,4297.4,6.34098841]
[1757318726998,1.2119,4297.5,4297.4,6.34098841]
[1757318727665,0.7391,4297.5,4297.4,6.34098841]
[1757318728355,0.0002,4297.5,4297.4,6.34098841]
[1757318728598,0.0002,4297.5,4297.4,8.08215473]
[1757318728995,0.0002,4297.5,4297.4,7.79375473]
[1757318729900,0.0002,4297.5,4297.4,7.88694844]
[1757318730596,0.0002,4297.5,4297.4,8.17534844]
[1757318731160,0.0002,4297.5,4297.4,13.88214844]
[1757318731697,0.0002,4297.5,4297.4,28.38214844]
[1757318732797,0.0004,4297.7,4297.6,2.32688011]
[1757318732999,0.0004,4297.7,4297.6,15.86274561]
[1757318733201,0.0004,4297.7,4297.6,16.64084561]
[1757318733565,0.0004,4297.7,4297.6,16.73402933]
[1757318736176,0.0004,4297.7,4297.6,31.23402933]
[1757318737767,0.0004,4297.7,4297.6,24.5963205]
[1757318737768,0.2972,4297.7,4297.6,24.5963205]
[1757318738113,0.7393,4297.7,4297.6,24.5963205]
[1757318739300,0.0004,4297.7,4297.6,24.8847205]
[1757318739480,0.0004,4297.7,4297.6,31.23402933]
[1757318740198,0.0004,4297.7,4297.6,31.66312933]
[1757318741082,0.0004,4297.7,4297.6,31.23402933]
[1757318741603,0.0004,4297.7,4297.6,30.74432933]
[1757318744134,0.0004,4297.7,4297.6,30.45592933]
[1757318746518,0.7393,4297.7,4297.6,23.82006383]
[1757318746725,1.2121,4297.7,4297.6,23.82006383]
[1757318746879,1.2121,4297.7,4297.6,19.92006383]
[1757318747075,0.7393,4297.7,4297.6,23.81206383]
[1757318748178,1.2121,4297.7,4297.6,19.92006383]
[1757318748522,1.2121,4297.7,4297.6,23.71888011]
[1757318749826,1.2121,4297.7,4297.6,9.21888011]
[1757318750122,1.2121,4297.7,4297.6,23.71888011]
[1757318751881,0.7393,4297.7,4297.6,23.71888011]
[1757318752996,0.2972,4297.7,4297.6,23.71888011]
[1757318753332,0.0004,4297.7,4297.6,9.21888011]
[1757318753629,0.2991,4297.7,4297.6,23.71888011]
[1757318753809,0.7273,4297.7,4297.6,23.71888011]
[1757318756198,1.2174,4297.7,4297.6,3.892]
[1757318756405,1.34374,4297.7,4297.6,3.894]
[1757318756707,1.34374,4297.7,4297.6,6.22088011]
[1757318757244,1.34374,4297.7,4297.6,3.894]
[1757318757396,1.34374,4297.7,4297.6,0.002]
[1757318757600,1.34374,4297.7,4297.6,2.32888011]
[1757318758125,1.34374,4297.7,4297.6,0.002]
[1757318758439,1.34294,4297.7,4297.6,0.002]
[1757318758605,2.13494,4297.7,4297.6,0.002]
[1757318759520,4.46176597,4297.7,4297.6,0.002]
[1757318759709,2.13494,4297.7,4297.6,0.002]
[1757318760445,4.46176597,4297.7,4297.6,0.002]
[1757318761247,7.46176597,4297.7,4297.6,0.002]
[1757318761547,8.30915639,4297.7,4297.6,0.002]
[1757318762454,8.17897902,4297.7,4297.6,0.002]
[1757318764346,7.67873222,4297.7,4297.6,0.002]
[1757318765346,7.46176597,4297.7,4297.6,0.002]
[1757318766629,14.51936597,4297.7,4297.6,0.002]
[1757318771273,12.0379,4297.7,4297.6,0.002]
[1757318771432,10.9476,4297.7,4297.6,0.296]
[1757318771648,3.89,4297.7,4297.6,3.08828011]
[1757318772069,0.141,4297.8,4297.7,2.32682597]
[1757318772374,0.141,4297.8,4297.7,3.08622597]
[1757318772529,0.141,4297.8,4297.7,3.52962597]
[1757318773326,0.025,4297.8,4297.7,4.12958124]
[1757318774532,0.025,4297.8,4297.7,3.68618124]
[1757318777770,0.7519,4297.8,4297.6,14.643]
[1757318777993,0.4282,4297.7,4297.6,2.46986975]
[1757318778293,0.7269,4297.7,4297.6,2.46986975]
[1757318778456,0.7269,4297.7,4297.6,0.143]
[1757318778852,0.7269,4297.7,4297.6,2.46988011]
[1757318779552,0.7269,4297.7,4297.6,0.143]
[1757318779799,1.217,4297.7,4297.6,0.002]
[1757318780559,5.08369238,4297.7,4297.6,0.002]
[1757318780756,2.75686641,4297.7,4297.6,0.002]
[1757318781496,5.08369238,4297.7,4297.6,0.002]
[1757318782002,2.75686641,4297.7,4297.6,0.002]
[1757318782308,5.08369238,4297.7,4297.6,0.002]
[1757318782594,9.87169238,4297.7,4297.6,0.002]
[1757318783655,9.87089238,4297.7,4297.6,0.002]
[1757318785973,16.92849238,4297.7,4297.6,0.002]
[1757318786492,17.14505591,4297.7,4297.6,0.002]
[1757318786883,17.77386719,4297.7,4297.6,0.002]
[1757318791103,15.93444101,4297.7,4297.6,0.002]
[1757318791390,19.82444101,4297.7,4297.6,0.002]
[1757318792380,20.11755591,4297.7,4297.6,0.002]
[1757318792754,20.57035591,4297.7,4297.6,0.002]
[1757318793201,20.11755591,4297.7,4297.6,0.002]
[1757318793375,20.6163735,4297.7,4297.6,0.002]
[1757318793899,19.90099238,4297.7,4297.6,0.002]
[1757318794599,19.60229238,4297.7,4297.6,0.3046]
[1757318795299,16.60229238,4297.7,4297.6,0.002]
[1757318797383,17.34689238,4297.7,4297.6,0.002]
[1757318798795,21.04921751,4297.7,4297.6,0.002]
[1757318799093,21.67800701,4297.7,4297.6,0.002]
[1757318800411,25.84571498,4297.7,4297.6,0.002]
[1757318800613,25.52800701,4297.7,4297.6,0.002]
[1757318802769,23.07700701,4297.7,4297.6,0.002]
[1757318805677,6.11909671,4297.2,4297.1,0.002]
[1757318805879,20.24604781,4297.2,4297.1,0.002]
[1757318806078,21.47644781,4297.2,4297.1,0.002]
[1757318806278,28.53204781,4297.2,4297.1,0.002]
[1757318809216,28.53124781,4297.2,4297.1,0.002]
[1757318811486,3.11931334,4296.8,4296.7,1e-08]
[1757318811690,27.90084193,4296.8,4296.7,1e-08]
[1757318811890,28.30003235,4296.8,4296.7,1e-08]
[1757318812318,28.39330625,4296.8,4296.7,1e-08]
[1757318812522,29.2252337,4296.8,4296.7,1e-08]
[1757318812819,31.61155146,4296.8,4296.7,1e-08]
[1757318816440,30.09921897,4296.8,4296.7,1e-08]
[1757318817202,6.11942168,4296.6,4296.5,0.002]
[1757318817400,28.18226375,4296.6,4296.5,0.002]
[1757318817615,29.43506375,4296.6,4296.5,0.002]
[1757318817822,30.19168507,4296.6,4296.5,0.002]
[1757318820560,24.61253892,4296.6,4296.5,0.002]
[1757318820717,25.74923892,4296.6,4296.5,0.7633]
[1757318821123,23.55723892,4296.6,4296.5,0.2902]
[1757318821324,23.55723892,4296.6,4296.5,0.7633]
[1757318821835,23.55723892,4296.6,4296.5,0.2902]
[1757318822036,24.34923892,4296.6,4296.5,0.2902]
[1757318823413,24.34923892,4296.6,4296.5,0.002]
[1757318825070,24.58257971,4296.6,4296.5,0.002]
[1757318827371,27.03357971,4296.6,4296.5,0.002]
[1757318827679,24.58257971,4296.6,4296.5,0.002]
[1757318828444,25.41450716,4296.6,4296.5,0.002]
[1757318829439,24.58257971,4296.6,4296.5,0.002]
[1757318829973,24.58257971,4296.6,4296.5,0.2902]
[1757318830134,24.58257971,4296.6,4296.5,0.7633]
[1757318830768,24.58257971,4296.6,4296.5,0.2902]
[1757318830967,24.58257971,4296.6,4296.5,0.002]
[1757318831670,6.11980092,4295.9,4295.8,1e-08]
[1757318831830,18.50218744,4295.9,4295.8,1e-08]
[1757318832036,18.80248744,4295.9,4295.8,1e-08]
[1757318832234,13.63689886,4295.9,4295.8,1e-08]
[1757318832885,14.95135974,4295.9,4295.8,1e-08]
[1757318833039,17.21926771,4295.9,4295.8,1e-08]